bitfinex/quotes_ETHUSD_20240716
["timestamp","ask_amount","ask_price","bid_price","bid_amount"]
[1721137771772,20.07567921,3415.2,3415.1,0.008]
[1721137771968,17.14759921,3415.2,3415.1,0.008]
[1721137772209,18.6553259,3415.2,3415.1,0.008]
[1721137772433,19.16317602,3415.2,3415.1,0.008]
[1721137772722,19.16317731,3415.2,3415.1,0.008]
[1721137772921,18.6553259,3415.2,3415.1,0.008]
[1721137773990,15.7272459,3415.2,3415.1,0.008]
[1721137774187,15.42224,3415.2,3415.1,0.008]
[1721137774420,17.94724,3415.2,3415.1,0.008]
[1721137775098,20.87532,3415.2,3415.1,0.008]
[1721137776072,11.94416,3415.2,3415.1,0.008]
[1721137776481,8.85616,3415.2,3415.1,0.008]
[1721137776886,14.87224,3415.2,3415.1,0.008]
[1721137777120,17.80032,3415.2,3415.1,0.008]
[1721137778029,18.35032,3415.2,3415.1,0.008]
[1721137778524,20.05032,3415.2,3415.1,0.008]
[1721137780704,15.42224,3415.2,3415.1,0.008]
[1721137782441,11.94416,3415.2,3415.1,0.008]
[1721137782644,8.85616,3415.2,3415.1,0.008]
[1721137782959,3.48628963,3415.7,3415.1,0.24507]
[1721137782960,2.92775,3415.6,3415.1,0.24507]
[1721137783115,2.92792,3415.4,3415.1,0.24507]
[1721137783645,2.92783,3415.5,3415.2,2.4731]
[1721137783846,2.92775,3415.6,3415.2,2.4731]
[1721137784837,3.0,3415.5,3415.2,2.4731]
[1721137785036,2.92799,3415.4,3415.2,2.4731]
[1721137785226,2.928,3415.3,3415.2,2.4731]
[1721137786212,5.92786,3415.5,3415.2,2.4731]
[1721137786614,2.92795,3415.4,3415.2,2.4731]
[1721137786807,3.0,3415.5,3415.2,2.4731]
[1721137787413,5.92789,3415.5,3415.2,2.4731]
[1721137788053,2.92792,3415.4,3415.2,2.4731]
[1721137788258,2.928,3415.3,3415.2,2.4731]
[1721137788557,5.856,3415.3,3415.2,2.4731]
[1721137789208,5.856,3415.3,3415.1,0.008]
[1721137789209,2.928,3415.3,3415.1,0.008]
[1721137789442,5.88384352,3415.2,3415.1,0.008]
[1721137789753,8.85616,3415.2,3415.1,0.008]
[1721137790845,15.42224,3415.2,3415.1,0.008]
[1721137791171,15.92975893,3415.2,3415.1,0.008]
[1721137791369,16.8406874,3415.2,3415.1,0.008]
[1721137791932,15.92975893,3415.2,3415.1,0.008]
[1721137792166,17.14433022,3415.2,3415.1,0.008]
[1721137792547,17.14929712,3415.2,3415.1,0.008]
[1721137792775,18.85783893,3415.2,3415.1,0.008]
[1721137792946,20.3803122,3415.2,3415.1,0.008]
[1721137793282,18.85783893,3415.2,3415.1,0.008]
[1721137793945,18.85783871,3415.2,3415.1,0.008]
[1721137794473,18.85786557,3415.2,3415.1,0.008]
[1721137794673,15.92978557,3415.2,3415.1,0.008]
[1721137795330,11.20041329,3415.2,3415.1,0.008]
[1721137795666,11.20041329,3415.2,3415.1,2.3334]
[1721137795667,7.66022811,3415.2,3415.1,2.3334]
[1721137795960,10.89440019,3415.2,3415.1,2.3334]
[1721137796172,9.36370557,3415.2,3415.1,2.3334]
[1721137796976,8.85616,3415.2,3415.1,2.3334]
[1721137797201,9.36363027,3415.2,3415.1,2.3334]
[1721137797538,11.20374555,3415.2,3415.1,2.3334]
[1721137798082,9.36363027,3415.2,3415.1,2.3334]
[1721137798688,9.36363027,3415.2,3415.1,0.008]
[1721137798897,15.92971027,3415.2,3415.1,0.008]
[1721137799262,16.08260403,3415.2,3415.1,0.008]
[1721137799595,16.08259869,3415.2,3415.1,0.008]
[1721137799743,15.92971027,3415.2,3415.1,0.008]
[1721137799950,16.08259733,3415.2,3415.1,0.008]
[1721137800149,15.57512706,3415.2,3415.1,0.008]
[1721137800344,14.98391165,3415.2,3415.1,0.008]
[1721137800540,9.36382411,3415.2,3415.1,0.008]
[1721137800778,11.51341138,3415.2,3415.1,0.008]
[1721137800956,6.43574411,3415.2,3415.1,2.5066]
[1721137801172,0.50766411,3415.2,3415.1,2.75726]
[1721137801352,2.04290674,3415.2,3415.1,2.75726]
[1721137801683,0.50766411,3415.2,3415.1,2.75726]
[1721137801887,2.34995093,3415.4,3415.1,2.5066]
[1721137802094,0.50766411,3415.3,3415.1,2.5066]
[1721137802245,0.50766411,3415.2,3415.1,2.5066]
[1721137802588,1.53502253,3415.3,3415.1,2.5066]
[1721137802589,1.2277543,3415.3,3415.1,2.5066]
[1721137802890,0.50735314,3415.2,3415.1,2.5066]
[1721137803450,1.2277543,3415.6,3415.1,2.5066]
[1721137803451,0.92078845,3415.6,3415.3,2.436]
[1721137803653,0.92078845,3415.8,3415.3,2.436]
[1721137803853,0.50718279,3415.7,3415.4,2.98645935]
[1721137804193,0.92078845,3416.0,3415.6,5.36373]
[1721137804354,0.50714304,3415.9,3415.7,2.3807]
[1721137805310,0.50714304,3415.9,3415.7,5.30834]
[1721137805590,1.84074816,3416.7,3416.1,2.92731]
[1721137805591,0.92078845,3416.3,3416.1,2.92731]
[1721137805795,5.07383952,3417.3,3415.5,0.59145394]
[1721137805796,0.91898018,3416.6,3416.2,2.974311]
[1721137806016,0.91898018,3416.5,3416.2,2.974311]
[1721137806254,1.22530691,3416.4,3416.2,2.4378]
[1721137806535,0.91856707,3416.4,3416.2,2.4378]
[1721137806941,0.91856707,3416.6,3416.2,5.36501]
[1721137807106,0.91856707,3416.6,3416.3,0.536501]
[1721137807311,0.91856707,3416.8,3416.4,2.3029]
[1721137807828,0.91856707,3416.9,3416.4,2.3029]
[1721137809111,1.22530691,3417.1,3416.4,2.3029]
[1721137809112,0.91856707,3416.8,3416.4,2.3029]
[1721137809290,0.91856707,3416.9,3416.4,2.5868401]
[1721137809493,0.91856707,3417.0,3416.4,2.5868401]
[1721137809724,0.91856707,3416.9,3416.4,2.5868401]
[1721137809963,0.91856707,3417.0,3416.4,3.2109701]
[1721137810250,0.91856707,3417.4,3416.6,2.3811]
[1721137810451,0.91856707,3417.3,3416.7,2.94029801]
[1721137810607,0.91856707,3417.4,3416.7,2.94029801]
[1721137810807,1.52870161,3417.7,3416.8,2.3811]
[1721137810808,0.91856707,3417.5,3416.8,2.3811]
[1721137811047,1.22530691,3417.7,3416.8,2.3811]
[1721137811048,3.84464707,3417.6,3416.8,2.3811]
[1721137811253,0.91856707,3417.5,3416.8,2.3811]
[1721137811432,3.84464707,3417.6,3416.9,0.5867128]
[1721137811643,0.91856707,3417.8,3417.0,2.3499]
[1721137811969,2.9261,3417.6,3417.0,2.3499]
[1721137812243,2.92627,3417.4,3417.0,2.3499]
[1721137812406,3.84154933,3417.5,3417.0,2.3499]
[1721137812754,0.91543933,3417.5,3417.0,2.3499]
[1721137812905,3.84146933,3417.6,3417.0,2.3499]
[1721137813110,2.92611,3417.5,3417.0,2.3499]
[1721137813608,2.92611,3417.5,3417.0,2.58489]
[1721137813853,2.92597,3417.7,3417.0,2.58489]
[1721137814019,2.9262,3417.4,3417.0,2.3499]
[1721137814225,2.92637,3417.2,3417.0,2.3499]
[1721137814744,0.91543933,3417.7,3417.0,2.3499]
[1721137814941,3.0,3417.8,3417.0,2.3499]
[1721137815308,2.92611,3417.6,3417.0,2.3499]
[1721137815737,2.92624,3417.4,3417.0,2.3499]
[1721137815918,2.92645,3417.1,3417.0,2.3499]
[1721137816121,2.9263,3417.3,3417.0,2.3499]
[1721137816334,3.91543933,3417.8,3417.0,2.3499]
[1721137816650,2.92608,3417.6,3417.0,2.3499]
[1721137817310,2.92598,3417.7,3417.0,2.3499]
[1721137817311,2.92598,3417.7,3417.0,2.877569]
[1721137817577,2.92604,3417.6,3417.0,2.877569]
[1721137818047,2.9261,3417.6,3417.0,2.877569]
[1721137818210,2.92645,3417.2,3417.0,2.3499]
[1721137818417,2.92591,3417.8,3417.0,2.3499]
[1721137818418,2.9262,3417.4,3417.0,2.3499]
[1721137818723,2.92633,3417.3,3417.0,2.3499]
[1721137819243,2.92638,3417.2,3417.0,2.3499]
[1721137819455,2.92629,3417.3,3417.0,2.3499]
[1721137819815,2.92606,3417.6,3417.0,2.3499]
[1721137820325,2.92614,3417.5,3417.0,2.3499]
[1721137821204,3.088,3418.5,3417.0,2.3499]
[1721137821205,2.92562,3418.1,3417.0,2.58489]
[1721137821354,2.9257,3418.0,3417.1,2.4289]
[1721137822359,1.2173028,3418.8,3417.2,5.42565]
[1721137822360,2.92552,3418.2,3417.2,5.42565]
[1721137822510,10.29496,3418.9,3417.2,5.42565]
[1721137822511,2.92541,3418.4,3417.5,2.4993]
[1721137822713,2.92521,3418.6,3417.5,2.4993]
[1721137822935,2.9254,3418.4,3417.6,2.4993]
[1721137823141,2.9254,3418.4,3417.7,3.334459]
[1721137823445,2.92545,3418.3,3417.7,3.334459]
[1721137823832,2.92585,3417.8,3417.7,2.4993]
[1721137824256,3.088,3418.8,3417.7,2.4993]
[1721137824257,2.92568,3418.0,3417.7,2.4993]
[1721137824455,2.92565,3418.1,3417.7,2.4993]
[1721137825188,2.92571,3418.0,3417.7,2.4993]
[1721137825351,2.92518,3418.6,3417.7,2.4993]
[1721137825352,5.8517,3417.8,3417.7,2.4993]
[1721137825889,2.92585,3417.8,3417.7,2.4993]
[1721137826036,5.8517,3417.8,3417.7,2.4993]
[1721137827576,2.92562,3418.1,3416.7,2.2848]
[1721137827735,2.92607,3417.6,3416.9,2.2848]
[1721137828089,2.92566,3418.1,3417.0,2.92647]
[1721137828380,2.92546,3418.3,3417.3,2.3621]
[1721137828534,10.29528,3418.5,3417.5,2.3621]
[1721137828535,7.37,3418.5,3417.5,2.3621]
[1721137828732,2.92523,3418.6,3417.7,2.3621]
[1721137829967,2.92527,3418.5,3417.7,2.3621]
[1721137830486,2.92546,3418.3,3417.7,2.3621]
[1721137830854,2.92514,3418.7,3417.8,2.3919]
[1721137831336,2.92495,3418.9,3417.9,2.3919]
[1721137831539,3.0,3418.8,3418.1,2.3919]
[1721137831737,5.92501,3418.8,3418.1,2.3919]
[1721137833854,0.2929,3419.6,3418.1,2.92557]
[1721137834053,2.92471,3419.2,3418.2,5.18336]
[1721137834258,2.92506,3418.8,3418.3,0.8640702]
[1721137834488,2.9252,3418.6,3418.3,0.8640702]
[1721137834652,2.9252,3418.6,3418.2,2.2579]
[1721137834653,0.02768352,3419.1,3418.2,2.2579]
[1721137834863,2.92543,3418.3,3418.2,2.2579]
[1721137835275,2.92529,3418.5,3418.2,2.2579]
[1721137835276,2.92541,3418.4,3418.2,2.2579]
[1721137835477,2.92513,3418.7,3418.2,2.2579]
[1721137837293,2.92518,3418.6,3418.2,2.2579]
[1721137837594,2.92518,3418.6,3418.3,0.22579]
[1721137837778,2.92505,3418.8,3418.3,0.22579]
[1721137838158,2.92509,3418.7,3418.3,0.22579]
[1721137838568,2.92534,3418.5,3418.3,0.22579]
[1721137838768,2.92523,3418.6,3418.3,0.22579]
[1721137838994,2.92523,3418.6,3418.4,0.248369]
[1721137839565,2.92503,3418.8,3418.4,0.248369]
[1721137839881,3.2929,3419.6,3418.5,2.2573]
[1721137839882,2.9244,3419.5,3418.5,2.2573]
[1721137840060,2.9244,3419.5,3418.6,0.05849287]
[1721137840061,2.92485,3419.0,3418.6,0.05849287]
[1721137840260,2.92485,3419.0,3418.5,2.2573]
[1721137840460,2.92485,3419.0,3418.0,2.9256]
[1721137840461,2.92485,3419.0,3418.7,2.2573]
[1721137840759,2.92485,3419.0,3418.7,2.31579485]
[1721137841302,2.92488,3419.0,3418.7,2.2573]
[1721137842102,5.84944,3419.2,3418.7,2.2573]
[1721137842276,2.9247,3419.2,3418.8,0.25078669]
[1721137843618,0.91219755,3420.1,3418.9,2.31579085]
[1721137843762,1.52339108,3420.4,3418.8,0.25078669]
[1721137843763,2.92406,3419.9,3419.0,2.92483]
[1721137843966,2.92406,3419.9,3419.1,2.2811]
[1721137844170,2.92404,3420.0,3419.1,2.2811]
[1721137844397,2.92422,3419.8,3419.2,0.28311]
[1721137844965,2.92419,3419.8,3419.2,0.28311]
[1721137845494,2.92419,3419.8,3419.3,2.2811]
[1721137845805,3.83587755,3420.4,3419.3,2.2811]
[1721137845806,2.92434,3419.6,3419.3,2.2811]
[1721137846191,2.92434,3419.6,3419.3,2.537521]
[1721137846393,2.92425,3419.7,3419.3,2.537521]
[1721137846596,2.92436,3419.6,3419.3,2.537521]
[1721137847991,2.92415,3419.8,3419.3,2.537521]
[1721137848190,5.84838,3419.8,3419.3,2.537521]
[1721137848410,5.84838,3419.8,3419.4,0.2537521]
[1721137848610,2.92415,3419.8,3419.4,0.2537521]
[1721137849121,0.91546414,3420.2,3419.4,0.2537521]
[1721137849299,2.92378,3420.3,3419.4,0.2537521]
[1721137849300,2.9239,3420.1,3419.4,0.2537521]
[1721137849624,2.9239,3420.1,3419.6,2.4007]
[1721137850623,2.92378,3420.3,3419.6,2.4007]
[1721137850986,0.91546414,3420.5,3419.6,5.32498]
[1721137851332,2.92338,3420.7,3419.8,2.4007]
[1721137851537,3.83881414,3420.8,3419.9,5.32474]
[1721137852103,0.91546414,3420.7,3419.9,5.32474]
[1721137852300,0.91546414,3420.7,3420.0,2.4007]
[1721137852500,3.83881414,3420.8,3420.0,2.4007]
[1721137852714,3.83881414,3420.8,3420.1,0.824881]
[1721137852913,2.92335,3420.8,3420.1,0.824881]
[1721137853237,3.83881414,3420.8,3420.1,0.824881]
[1721137853939,0.91546414,3420.8,3420.1,0.824881]
[1721137854313,0.91546414,3420.7,3420.2,2.4007]
[1721137854519,0.91546414,3420.7,3420.3,0.6149551]
[1721137855006,2.92331,3420.8,3420.3,0.6149551]
[1721137855206,2.92331,3420.8,3420.2,2.4007]
[1721137855406,2.92338,3420.7,3420.2,2.4007]
[1721137855647,2.92351,3420.6,3420.2,2.4007]
[1721137856042,2.92361,3420.5,3420.2,2.4007]
[1721137856834,3.83989197,3420.7,3420.2,2.4007]
[1721137857167,3.83989197,3420.7,3420.3,0.24007]
[1721137858129,3.83994197,3420.6,3420.3,0.24007]
[1721137858708,2.92346,3420.6,3420.3,0.24007]
[1721137859153,3.83994197,3420.6,3420.3,0.24007]
[1721137859361,1.22197596,3420.8,3420.3,0.24007]
[1721137859362,3.83984197,3420.8,3420.3,0.24007]
[1721137859655,2.92336,3420.8,3420.4,0.264077]
[1721137860015,2.92312,3421.0,3420.4,0.264077]
[1721137860016,5.84632,3421.0,3420.4,0.264077]
[1721137860215,2.9232,3420.9,3420.4,0.264077]
[1721137860476,3.83827558,3421.2,3420.4,0.264077]
[1721137860622,2.92298,3421.2,3420.5,2.4692]
[1721137860827,2.92298,3421.2,3420.6,0.5656977]
[1721137861336,3.83827558,3421.2,3420.5,2.4692]
[1721137861545,2.92312,3421.0,3420.5,2.4692]
[1721137861725,3.83827558,3421.2,3420.5,2.4692]
[1721137861934,2.92305,3421.1,3420.5,2.4692]
[1721137862248,3.83813558,3421.4,3420.5,2.4692]
[1721137862415,2.92295,3421.2,3420.6,0.8580497]
[1721137862613,0.91529558,3421.1,3420.6,0.8580497]
[1721137862816,3.83834558,3421.1,3420.6,0.8580497]
[1721137863272,0.91529558,3421.1,3420.5,2.4692]
[1721137863421,2.92346,3420.6,3419.8,2.3879]
[1721137863618,2.92394,3420.1,3419.8,2.3879]
[1721137863837,5.8479,3420.1,3419.8,2.3879]
[1721137864047,2.92401,3420.0,3419.8,2.3879]
[1721137864740,2.92406,3419.9,3419.8,2.3879]
[1721137864950,1.22039411,3420.3,3419.0,2.3879]
[1721137864951,2.92448,3419.5,3419.0,2.3879]
[1721137865140,4.14431411,3420.1,3419.1,0.96879]
[1721137865141,2.92428,3419.7,3419.1,0.96879]
[1721137865340,1.52624485,3420.3,3419.1,0.96879]
[1721137865341,2.92446,3419.5,3419.1,0.96879]
[1721137865557,1.22039411,3420.2,3419.0,2.3879]
[1721137865558,2.9243,3419.7,3419.0,2.3879]
[1721137865719,2.92417,3419.8,3419.0,2.3879]
[1721137866061,2.92399,3420.0,3419.1,2.92468]
[1721137866062,2.92406,3419.9,3419.1,2.92468]
[1721137866260,2.92394,3420.1,3419.2,2.4955]
[1721137866467,2.92383,3420.2,3419.2,5.42015]
[1721137866625,2.92383,3420.2,3419.3,3.329983]
[1721137866818,2.92389,3420.1,3419.3,3.329983]
[1721137867058,3.83895558,3420.4,3419.4,2.3989]
[1721137867059,2.92366,3420.4,3419.4,2.3989]
[1721137867556,2.92376,3420.3,3419.5,2.3592]
[1721137867733,2.92366,3420.4,3419.5,2.3592]
[1721137867942,2.92366,3420.4,3419.6,0.6118203]
[1721137868149,0.91529558,3420.5,3419.5,2.3592]
[1721137868327,2.92418,3419.8,3419.5,2.3592]
[1721137870161,2.92431,3419.6,3419.5,2.3592]
[1721137870361,2.92449,3419.4,3418.6,7.3]
[1721137870578,2.92449,3419.4,3418.5,2.4365]
[1721137870725,2.92449,3419.4,3418.6,2.972683]
[1721137871173,2.92457,3419.3,3418.6,2.972683]
[1721137871368,2.92473,3419.2,3418.6,2.972683]
[1721137871532,2.92473,3419.2,3418.6,2.4365]
[1721137872034,2.92449,3419.4,3418.6,2.4365]
[1721137872035,2.92474,3419.1,3418.6,2.4365]
[1721137872249,2.92463,3419.3,3418.6,2.4365]
[1721137872463,2.92452,3419.4,3418.6,2.4365]
[1721137872738,2.92469,3419.2,3418.6,2.4365]
[1721137872943,2.92469,3419.2,3418.7,0.536182]
[1721137873738,4.44937065,3419.8,3418.7,0.536182]
[1721137873739,0.9150779,3419.7,3418.9,2.92491]
[1721137873932,3.8390579,3420.0,3419.0,2.54748207]
[1721137874273,3.8390179,3420.1,3419.2,2.489]
[1721137874471,2.92398,3420.0,3419.2,2.489]
[1721137874768,2.92398,3420.0,3419.3,0.541373]
[1721137875267,0.91624882,3420.1,3419.5,2.489]
[1721137875568,4.45073137,3420.4,3419.6,2.9243]
[1721137875569,0.91624882,3420.4,3419.6,2.9243]
[1721137875775,0.91624882,3420.4,3419.7,2.92422]
[1721137876258,0.91624882,3420.4,3419.6,2.92428]
[1721137876469,0.91624882,3420.3,3419.7,1.142573]
[1721137876969,0.91624882,3420.3,3419.7,4.066793]
[1721137877172,0.91624882,3420.4,3419.7,4.066793]
[1721137877484,2.92346,3420.6,3419.7,4.066793]
[1721137877678,0.91656225,3420.4,3419.8,0.9480073]
[1721137878073,0.91656225,3420.4,3419.9,2.39236939]
[1721137878239,12.1496747,3421.7,3419.9,2.39236939]
[1721137878240,0.91656225,3420.7,3419.9,5.25794]
[1721137878443,0.91656225,3421.0,3420.1,2.92388]
[1721137878702,0.91656225,3420.9,3420.2,2.3696]
[1721137878842,0.91656225,3420.9,3420.3,0.529348]
[1721137879191,2.92329,3420.8,3420.3,0.529348]
[1721137879689,2.92329,3420.8,3420.2,2.3696]
[1721137880570,2.92318,3421.0,3420.2,2.3696]
[1721137880742,0.91643799,3421.0,3420.2,5.29334]
[1721137880941,0.91643799,3421.1,3420.3,4.045441]
[1721137881186,0.91643799,3421.1,3420.5,2.4002]
[1721137881495,0.91643799,3421.3,3420.6,2.92339]
[1721137881781,1.22191732,3421.5,3420.6,2.92339]
[1721137881782,0.91643799,3421.4,3420.6,2.92339]
[1721137883242,1.02775083,3421.3,3420.7,2.92336]
[1721137883578,0.91643799,3421.4,3420.8,0.824703]
[1721137884139,4.14453732,3421.6,3420.8,0.824703]
[1721137884140,1.02774115,3421.3,3420.8,0.824703]
[1721137884345,0.91643799,3421.3,3420.8,0.824703]
[1721137884569,0.91643799,3421.4,3420.8,0.824703]
[1721137884872,1.22191732,3421.5,3420.8,0.824703]
[1721137884873,0.91643799,3421.5,3421.0,2.4556]
[1721137885089,0.11126265,3421.4,3421.0,2.4556]
[1721137885249,0.91643799,3421.5,3421.0,2.4556]
[1721137885455,1.22191732,3421.6,3421.0,2.4556]
[1721137885456,0.91643799,3421.6,3421.0,2.4556]
[1721137885664,0.91643799,3421.6,3421.1,0.65783903]
[1721137885882,3.83905799,3421.6,3421.1,0.65783903]
[1721137886043,2.92324,3420.9,3420.4,2.4478]
[1721137886842,0.91643799,3421.0,3420.4,2.4478]
[1721137886843,0.91700274,3421.0,3420.4,2.4478]
[1721137887042,2.92312,3421.0,3420.4,2.4478]
[1721137887346,3.95172382,3420.9,3420.4,2.4478]
[1721137887546,3.95175382,3420.8,3420.4,2.4478]
[1721137887856,1.02849719,3420.7,3420.4,2.4478]
[1721137888081,3.84029274,3420.8,3420.4,2.4478]
[1721137888284,1.0284974,3420.7,3420.4,2.4478]
[1721137888587,3.84026274,3420.9,3420.5,0.24478]
[1721137889046,0.91700274,3420.9,3420.5,0.24478]
[1721137889552,0.91700274,3421.1,3420.5,0.24478]
[1721137889749,3.83995274,3421.2,3420.5,0.24478]
[1721137890286,0.91700274,3421.0,3420.5,0.24478]
[1721137890575,1.02845249,3420.9,3420.4,2.4478]
[1721137890741,0.91700274,3420.6,3420.4,2.4478]
[1721137890942,0.91700274,3420.7,3420.4,2.4478]
[1721137891141,0.91700274,3420.7,3420.4,2.69258]
[1721137891404,0.91700274,3420.7,3419.5,7.3]
[1721137891405,3.95201293,3420.6,3419.5,7.3]
[1721137891547,3.95201293,3420.6,3419.7,2.3094]
[1721137891548,3.84076274,3420.3,3419.7,2.3094]
[1721137892152,0.91700274,3420.4,3419.7,2.3094]
[1721137892370,0.91700274,3420.5,3419.9,2.924]
[1721137892565,0.91700274,3420.4,3419.9,2.924]
[1721137892764,0.91700274,3420.4,3420.0,0.815755]
[1721137893297,0.91745646,3420.2,3419.7,2.3094]
[1721137893454,0.91745646,3420.1,3419.7,2.3094]
[1721137893652,4.14703529,3420.3,3419.7,2.3094]
[1721137893653,0.91745646,3420.0,3419.7,2.3094]
[1721137893854,0.91745646,3420.1,3419.7,2.3094]
[1721137894190,1.22327529,3419.8,3418.9,2.92489]
[1721137894344,0.91772449,3419.6,3419.0,0.811451]
[1721137894554,3.84222449,3419.4,3418.7,2.2647]
[1721137894744,3.84236449,3419.3,3418.7,2.2647]
[1721137895255,0.91772449,3419.2,3418.7,2.2647]
[1721137896179,4.7592631,3419.8,3418.7,2.2647]
[1721137896180,0.91772449,3418.8,3418.7,2.2647]
[1721137896380,1.33527844,3418.8,3418.7,2.2647]
[1721137896587,0.91754133,3418.8,3418.7,2.2647]
[1721137896761,4.14820529,3418.9,3418.4,1.98264141]
[1721137896963,0.91760972,3418.5,3418.4,1.98264141]
[1721137897194,0.91760972,3418.6,3418.4,1.98264141]
[1721137897864,5.8505,3418.5,3418.4,1.98264141]
[1721137898090,7.18582222,3418.5,3418.4,1.98264141]
[1721137898390,7.49214679,3418.5,3418.4,1.98264141]
[1721137898591,7.18522602,3418.5,3418.4,1.98264141]
[1721137898794,5.96265525,3418.5,3418.4,1.98264141]
[1721137899098,5.8505,3418.5,3418.4,1.98264141]
[1721137899271,4.56539977,3418.5,3418.4,1.98264141]
[1721137899592,0.91642655,3418.6,3418.4,1.98264141]
[1721137900089,3.84144655,3418.8,3418.4,2.18090555]
[1721137900290,0.91642655,3418.8,3418.4,2.18090555]
[1721137900511,0.91642655,3418.9,3418.5,2.4388]
[1721137900668,0.91642655,3419.0,3418.5,2.4388]
[1721137901456,0.91642655,3419.1,3418.5,2.4388]
[1721137901657,1.52794827,3419.4,3418.5,2.4388]
[1721137901658,0.91642655,3419.4,3418.6,0.46197056]
[1721137901975,0.91642655,3419.5,3418.7,2.92507]
[1721137902196,0.91642655,3419.5,3418.7,2.8350718]
[1721137902494,0.91642655,3419.5,3418.5,2.4388]
[1721137902495,0.91642655,3419.2,3418.5,2.4388]
[1721137902717,3.84132655,3419.0,3418.5,2.4388]
[1721137902859,3.84132655,3419.0,3418.4,1.98264141]
[1721137903064,3.84148655,3418.8,3418.4,1.98264141]
[1721137903395,0.91642655,3418.9,3418.4,1.98264141]
[1721137903559,0.91642655,3419.0,3418.4,2.43007555]
[1721137903766,4.14701965,3419.1,3418.4,1.98264141]
[1721137903767,0.91642655,3418.9,3418.4,1.98264141]
[1721137903972,3.84133655,3418.9,3418.4,1.98264141]
[1721137904173,0.91642655,3419.1,3418.4,1.98264141]
[1721137904373,2.92481,3419.1,3418.4,1.98264141]
[1721137904578,2.92484,3419.0,3418.4,1.98264141]
[1721137904777,0.91642655,3418.8,3418.4,1.98264141]
[1721137905205,0.91642655,3418.9,3418.4,1.98264141]
[1721137905709,2.925,3418.8,3418.4,1.98264141]
[1721137907199,3.84056315,3419.0,3418.4,1.98264141]
[1721137907394,2.92484,3419.0,3418.4,1.98264141]
[1721137907606,2.92494,3418.9,3418.4,1.98264141]
[1721137907911,2.92501,3418.8,3418.4,1.98264141]
[1721137908306,2.92525,3418.5,3418.4,1.98264141]
[1721137908477,6.76622315,3418.5,3418.4,1.98264141]
[1721137908683,5.8505,3418.5,3418.4,1.98264141]
[1721137908880,7.1837028,3418.5,3418.4,1.98264141]
[1721137909096,7.18371796,3418.5,3418.4,1.98264141]
[1721137909294,6.76618803,3418.5,3418.4,1.98264141]
[1721137909916,5.8505,3418.5,3418.4,1.98264141]
[1721137910139,6.76601523,3418.5,3418.4,1.98264141]
[1721137910351,8.88802793,3418.5,3418.4,1.98264141]
[1721137910698,13.41423013,3418.5,3418.4,1.98264141]
[1721137910911,11.88802793,3418.5,3418.4,1.98264141]
[1721137911508,14.23702793,3418.5,3418.4,1.98264141]
[1721137911849,14.23711702,3418.5,3418.4,1.98264141]
[1721137912015,17.16236702,3418.5,3418.4,1.98264141]
[1721137912337,14.23711702,3418.5,3418.4,1.98264141]
[1721137912713,15.7610321,3418.5,3418.4,1.98264141]
[1721137913054,14.23711702,3418.5,3418.4,1.98264141]
[1721137913200,18.86236702,3418.5,3418.4,1.98264141]
[1721137913398,20.69196894,3418.5,3418.4,1.98264141]
[1721137913643,18.86236702,3418.5,3418.4,1.98264141]
[1721137913855,23.77996894,3418.5,3418.4,0.51997141]
[1721137914003,2.92663,3416.9,3416.6,2.3655]
[1721137915721,2.92647,3417.1,3416.6,2.3655]
[1721137916238,2.9266,3417.0,3416.6,2.3655]
[1721137916449,2.92686,3416.7,3416.1,2.3354]
[1721137916602,2.9272,3416.3,3416.1,2.3354]
[1721137917100,2.92715,3416.3,3416.1,2.3354]
[1721137917295,2.92715,3416.3,3415.7,7.3]
[1721137917542,2.92715,3416.3,3415.2,15.08805]
[1721137917543,2.92737,3416.1,3415.3,2.3354]
[1721137917725,2.92737,3416.1,3415.4,0.819962]
[1721137918623,9.37041,3417.2,3415.4,0.819962]
[1721137918624,2.927,3416.5,3415.4,0.819962]
[1721137918850,2.92697,3416.5,3415.4,0.819962]
[1721137919009,2.92697,3416.5,3415.4,6.747812]
[1721137919216,6.28242,3417.2,3415.4,6.747812]
[1721137919217,2.9272,3416.3,3415.4,3.819962]
[1721137919555,2.92724,3416.2,3415.5,0.9083422]
[1721137919698,2.9272,3416.3,3415.5,0.9083422]
[1721137920038,2.92724,3416.2,3415.4,2.9279]
[1721137920254,2.92699,3416.5,3415.4,2.9279]
[1721137920540,2.92667,3416.9,3415.7,5.41765]
[1721137920744,2.92687,3416.7,3415.7,5.41765]
[1721137920902,2.9269,3416.6,3415.8,0.834547]
[1721137921413,6.356,3417.2,3415.7,2.49]
[1721137921414,2.92708,3416.4,3415.7,2.49]
[1721137921612,2.9273,3416.2,3415.7,2.49]
[1721137922000,2.92672,3416.8,3415.7,2.49]
[1721137922001,2.92749,3415.9,3415.7,2.49]
[1721137922229,2.92737,3416.1,3415.7,2.49]
[1721137922412,2.92672,3416.8,3415.7,2.49]
[1721137922746,8.056,3417.2,3415.7,2.49]
[1721137922747,3.0,3416.7,3415.7,2.49]
[1721137922907,6.28243,3417.2,3415.7,2.49]
[1721137922908,3.02768352,3417.1,3415.7,2.49]
[1721137923104,2.92668,3416.9,3415.7,2.49]
[1721137923300,2.92685,3416.7,3415.7,2.49]
[1721137923500,2.92721,3416.3,3415.7,2.49]
[1721137923827,3.0,3417.1,3415.8,0.05854703]
[1721137924026,3.0,3417.1,3415.7,2.739]
[1721137924352,2.92655,3417.0,3416.0,2.92739]
[1721137924555,3.0,3417.1,3416.2,2.92715]
[1721137924750,2.92645,3417.2,3416.1,5.3665]
[1721137924899,2.92669,3416.9,3416.1,2.4392]
[1721137925105,2.92681,3416.7,3416.1,2.4392]
[1721137925820,2.92706,3416.4,3416.1,2.4392]
[1721137926002,2.92714,3416.3,3416.1,2.4392]
[1721137926198,2.92706,3416.4,3415.8,2.3009]